[Event "Early-Titled-Tuesday-Blitz-December-26-2023"]
[Site "Chess.com"]
[Date "2023.12.26"]
[Round "6"]
[White "C_K_G"]
[Black "YaWaleriy"]
[Result "1-0"]
[WhiteElo "2054"]
[BlackElo "2251"]
[TimeControl "180+1"]
[EndTime "9:06:20 PST"]
[Termination "C_K_G won by checkmate"]

1. e4 {[%clk 0:02:55.7]} 1... e6 {[%clk 0:02:56.5]} 2. Nf3 {[%clk 0:02:54.6]}
2... d5 {[%clk 0:02:56.3]} 3. Nc3 {[%clk 0:02:55.5]} 3... Nf6 {[%clk 0:02:54.5]}
4. e5 {[%clk 0:02:55.8]} 4... Nfd7 {[%clk 0:02:54.4]} 5. d4 {[%clk 0:02:56.5]}
5... c5 {[%clk 0:02:54.8]} 6. Bg5 {[%clk 0:02:56.7]} 6... Qb6 {[%clk 0:02:52.2]}
7. dxc5 {[%clk 0:02:57]} 7... Bxc5 {[%clk 0:02:50.4]} 8. Qd2 {[%clk 0:02:57.6]}
8... Bb4 {[%clk 0:02:30.1]} 9. a3 {[%clk 0:02:52.6]} 9... Qa5 {[%clk 0:02:27.8]}
10. axb4 {[%clk 0:02:30.1]} 10... Qxa1+ {[%clk 0:02:26.8]} 11. Nd1 {[%clk
0:02:28.3]} 11... Nc6 {[%clk 0:02:23.5]} 12. Bb5 {[%clk 0:02:24.4]} 12... a6
{[%clk 0:02:22.4]} 13. Bxc6 {[%clk 0:02:23.2]} 13... bxc6 {[%clk 0:02:21.7]} 14.
O-O {[%clk 0:02:23.3]} 14... Qa4 {[%clk 0:02:18.4]} 15. b3 {[%clk 0:02:12.8]}
15... Qb5 {[%clk 0:02:16.8]} 16. c4 {[%clk 0:02:12.8]} 16... dxc4 {[%clk
0:02:13.1]} 17. bxc4 {[%clk 0:02:12.8]} 17... Qxc4 {[%clk 0:02:13.1]} 18. Qd6
{[%clk 0:02:12.1]} 18... f6 {[%clk 0:02:08.6]} 19. exf6 {[%clk 0:02:11.4]} 19...
gxf6 {[%clk 0:02:08.7]} 20. Ne3 {[%clk 0:02:07.6]} 20... Qe4 {[%clk 0:01:47.3]}
21. Bxf6 {[%clk 0:01:41.1]} 21... Nxf6 {[%clk 0:01:38.8]} 22. Ng5 {[%clk
0:01:40.1]} 22... Qg6 {[%clk 0:01:35.8]} 23. Qxc6+ {[%clk 0:01:34.3]} 23... Ke7
{[%clk 0:01:34.8]} 24. Nf3 {[%clk 0:01:06.5]} 24... Qe4 {[%clk 0:01:15.3]} 25.
Qc5+ {[%clk 0:00:52.8]} 25... Ke8 {[%clk 0:01:14.9]} 26. Rd1 {[%clk 0:00:45.6]}
26... Bd7 {[%clk 0:01:14.3]} 27. Nc4 {[%clk 0:00:31.4]} 27... Qc6 {[%clk
0:00:59.5]} 28. Qg5 {[%clk 0:00:20]} 28... Ne4 {[%clk 0:00:47.7]} 29. Qg7 {[%clk
0:00:17.8]} 29... Rf8 {[%clk 0:00:19.3]} 30. Nce5 {[%clk 0:00:15.1]} 30... Qd5
{[%clk 0:00:17.5]} 31. Rxd5 {[%clk 0:00:14.1]} 31... exd5 {[%clk 0:00:17.3]} 32.
Qxd7# {[%clk 0:00:14.2]} 1-0

[Event "Early-Titled-Tuesday-Blitz-December-26-2023"]
[Site "Chess.com"]
[Date "2023.12.26"]
[Round "6"]
[White "BogdanDeac"]
[Black "Korchmar_Vasiliy"]
[Result "1-0"]
[WhiteElo "3013"]
[BlackElo "2792"]
[TimeControl "180+1"]
[EndTime "9:06:21 PST"]
[Termination "BogdanDeac won on time"]

1. d4 {[%clk 0:03:00.9]} 1... Nf6 {[%clk 0:02:59.1]} 2. c4 {[%clk 0:03:01.1]}
2... e6 {[%clk 0:02:59.4]} 3. Nf3 {[%clk 0:03:01.3]} 3... d5 {[%clk 0:02:59.8]}
4. g3 {[%clk 0:03:01.5]} 4... dxc4 {[%clk 0:02:56.9]} 5. Bg2 {[%clk 0:03:01.1]}
5... Bb4+ {[%clk 0:02:53.9]} 6. Bd2 {[%clk 0:03:00.9]} 6... a5 {[%clk
0:02:52.7]} 7. Qc2 {[%clk 0:02:59.9]} 7... Bxd2+ {[%clk 0:02:46.9]} 8. Qxd2
{[%clk 0:02:59.9]} 8... c6 {[%clk 0:02:43.8]} 9. a4 {[%clk 0:02:59.9]} 9... b5
{[%clk 0:02:44.1]} 10. axb5 {[%clk 0:02:59.5]} 10... cxb5 {[%clk 0:02:45]} 11.
Qg5 {[%clk 0:02:59.8]} 11... O-O {[%clk 0:02:45.4]} 12. Qxb5 {[%clk 0:03:00.4]}
12... Ba6 {[%clk 0:02:43.2]} 13. Qa4 {[%clk 0:03:00.2]} 13... Nbd7 {[%clk
0:02:33.2]} 14. O-O {[%clk 0:02:48.9]} 14... Nb6 {[%clk 0:02:31.8]} 15. Qc2
{[%clk 0:02:39.6]} 15... Bb7 {[%clk 0:02:30]} 16. Nc3 {[%clk 0:02:27.6]} 16...
Nfd5 {[%clk 0:02:28]} 17. Qd2 {[%clk 0:02:15.4]} 17... Nb4 {[%clk 0:02:09.1]}
18. Ra3 {[%clk 0:02:14.2]} 18... N6d5 {[%clk 0:01:56.7]} 19. Ne5 {[%clk
0:01:31.3]} 19... Qc7 {[%clk 0:01:48.1]} 20. Rfa1 {[%clk 0:01:23]} 20... Rfc8
{[%clk 0:01:36.3]} 21. Na4 {[%clk 0:01:00.2]} 21... f6 {[%clk 0:00:41.2]} 22.
Nf3 {[%clk 0:00:59.1]} 22... Ne7 {[%clk 0:00:33]} 23. Nc5 {[%clk 0:00:56.5]}
23... Qb6 {[%clk 0:00:15.7]} 24. Nxb7 {[%clk 0:00:49.7]} 24... Qxb7 {[%clk
0:00:16.6]} 25. Ng5 {[%clk 0:00:49.3]} 25... Qb6 {[%clk 0:00:07.6]} 26. Bxa8
{[%clk 0:00:46.7]} 26... Rxa8 {[%clk 0:00:08.5]} 27. Nf3 {[%clk 0:00:43.3]}
27... Nf5 {[%clk 0:00:05.1]} 28. Ra4 {[%clk 0:00:38.1]} 28... Rd8 {[%clk
0:00:02.8]} 29. Rxa5 {[%clk 0:00:26]} 29... Nxd4 {[%clk 0:00:02.3]} 30. Ra8
{[%clk 0:00:17.8]} 30... Rxa8 {[%clk 0:00:01.3]} 31. Rxa8+ {[%clk 0:00:17.3]}
1-0

[Event "Early-Titled-Tuesday-Blitz-December-26-2023"]
[Site "Chess.com"]
[Date "2023.12.26"]
[Round "6"]
[White "Bala-Afiada"]
[Black "MIss_MIaMI"]
[Result "0-1"]
[WhiteElo "2032"]
[BlackElo "2434"]
[TimeControl "180+1"]
[EndTime "9:06:23 PST"]
[Termination "MIss_MIaMI won by resignation"]

1. d4 {[%clk 0:03:00.9]} 1... c5 {[%clk 0:02:56.6]} 2. d5 {[%clk 0:03:00.9]}
2... g6 {[%clk 0:02:56.7]} 3. c4 {[%clk 0:03:01.1]} 3... Bg7 {[%clk 0:02:57.3]}
4. Nc3 {[%clk 0:03:01.6]} 4... Bxc3+ {[%clk 0:02:58]} 5. bxc3 {[%clk 0:03:01.6]}
5... Qa5 {[%clk 0:02:58.7]} 6. Qc2 {[%clk 0:03:00.5]} 6... f5 {[%clk 0:02:58.8]}
7. Bd2 {[%clk 0:02:58]} 7... Nf6 {[%clk 0:02:59]} 8. f3 {[%clk 0:02:56.7]} 8...
e5 {[%clk 0:02:50.7]} 9. dxe6 {[%clk 0:02:53.6]} 9... dxe6 {[%clk 0:02:51.6]}
10. e4 {[%clk 0:02:53.7]} 10... Nc6 {[%clk 0:02:45.6]} 11. exf5 {[%clk
0:02:47.7]} 11... exf5 {[%clk 0:02:46.5]} 12. Bd3 {[%clk 0:02:40.3]} 12... O-O
{[%clk 0:02:42.3]} 13. Ne2 {[%clk 0:02:39]} 13... Ne5 {[%clk 0:02:41.6]} 14. O-O
{[%clk 0:02:27.2]} 14... Rd8 {[%clk 0:02:40.3]} 15. Bg5 {[%clk 0:02:12]} 15...
Kg7 {[%clk 0:02:20.7]} 16. Rfd1 {[%clk 0:01:51.4]} 16... Be6 {[%clk 0:02:18]}
17. Nf4 {[%clk 0:01:44.9]} 17... Bg8 {[%clk 0:01:38.9]} 18. Qe2 {[%clk
0:01:18.9]} 18... Re8 {[%clk 0:01:29.9]} 19. Bxf6+ {[%clk 0:01:02.6]} 19... Kxf6
{[%clk 0:01:30.8]} 20. Qf1 {[%clk 0:00:56.7]} 20... Qxc3 {[%clk 0:01:16.5]} 21.
Nd5+ {[%clk 0:00:21.9]} 21... Bxd5 {[%clk 0:01:16]} 22. cxd5 {[%clk 0:00:22.8]}
22... Rad8 {[%clk 0:01:04.9]} 23. Rac1 {[%clk 0:00:16.2]} 23... Qa5 {[%clk
0:00:33.3]} 24. Bb1 {[%clk 0:00:15.6]} 24... Rd6 {[%clk 0:00:31.9]} 25. Re1
{[%clk 0:00:14.9]} 25... Rxd5 {[%clk 0:00:29.3]} 26. Kh1 {[%clk 0:00:14.3]}
26... Red8 {[%clk 0:00:25.1]} 27. Rcd1 {[%clk 0:00:12.7]} 27... Nd3 {[%clk
0:00:19.7]} 28. Re2 {[%clk 0:00:09.8]} 28... Qc7 {[%clk 0:00:16.8]} 29. Red2
{[%clk 0:00:09.7]} 29... c4 {[%clk 0:00:16.2]} 30. Bxd3 {[%clk 0:00:09.6]} 30...
cxd3 {[%clk 0:00:17]} 31. Rxd3 {[%clk 0:00:10.1]} 31... Rxd3 {[%clk 0:00:16.7]}
32. Rxd3 {[%clk 0:00:06.1]} 32... Rxd3 {[%clk 0:00:17.6]} 33. Qa1+ {[%clk
0:00:06]} 33... Qc3 {[%clk 0:00:17.3]} 0-1

[Event "Early-Titled-Tuesday-Blitz-December-26-2023"]
[Site "Chess.com"]
[Date "2023.12.26"]
[Round "6"]
[White "Alexei_Gubajdullin"]
[Black "DucksParadise"]
[Result "0-1"]
[WhiteElo "2653"]
[BlackElo "2500"]
[TimeControl "180+1"]
[EndTime "9:06:25 PST"]
[Termination "DucksParadise won by resignation"]

1. e4 {[%clk 0:02:59.5]} 1... c6 {[%clk 0:02:14.9]} 2. d4 {[%clk 0:02:56.3]}
2... d5 {[%clk 0:02:14.8]} 3. e5 {[%clk 0:02:55.8]} 3... Bf5 {[%clk 0:02:14.5]}
4. h4 {[%clk 0:02:55.8]} 4... Qd7 {[%clk 0:02:13.9]} 5. Ne2 {[%clk 0:02:48.1]}
5... h6 {[%clk 0:02:13.3]} 6. Ng3 {[%clk 0:02:45.2]} 6... Bh7 {[%clk 0:02:13.1]}
7. Bd3 {[%clk 0:02:45]} 7... Bxd3 {[%clk 0:02:12.3]} 8. Qxd3 {[%clk 0:02:41.9]}
8... e6 {[%clk 0:02:12.8]} 9. h5 {[%clk 0:02:41.1]} 9... c5 {[%clk 0:02:12.5]}
10. c3 {[%clk 0:02:40.8]} 10... Nc6 {[%clk 0:02:10.7]} 11. a3 {[%clk 0:02:40.6]}
11... Rc8 {[%clk 0:02:06.8]} 12. Be3 {[%clk 0:02:38]} 12... cxd4 {[%clk
0:02:06.8]} 13. cxd4 {[%clk 0:02:36.8]} 13... Be7 {[%clk 0:01:54.8]} 14. Nd2
{[%clk 0:02:36]} 14... Bd8 {[%clk 0:01:52]} 15. b4 {[%clk 0:02:28.2]} 15... Nge7
{[%clk 0:01:46.6]} 16. Rh4 {[%clk 0:02:26.3]} 16... Bb6 {[%clk 0:01:42.3]} 17.
Rg4 {[%clk 0:02:25]} 17... Kf8 {[%clk 0:01:37.3]} 18. f4 {[%clk 0:02:20.6]}
18... Nf5 {[%clk 0:01:23.2]} 19. Nxf5 {[%clk 0:02:16.7]} 19... exf5 {[%clk
0:01:24.1]} 20. Rg3 {[%clk 0:02:10.4]} 20... Ne7 {[%clk 0:01:07.9]} 21. Ke2
{[%clk 0:02:04.2]} 21... Rg8 {[%clk 0:01:02.6]} 22. Rh3 {[%clk 0:01:55.2]} 22...
g6 {[%clk 0:00:59]} 23. hxg6 {[%clk 0:01:54.7]} 23... Rxg6 {[%clk 0:00:59.9]}
24. g3 {[%clk 0:01:52.5]} 24... Kg7 {[%clk 0:00:59.1]} 25. Bf2 {[%clk
0:01:51.6]} 25... a6 {[%clk 0:00:54.2]} 26. Rhh1 {[%clk 0:01:49.8]} 26... Rgc6
{[%clk 0:00:45.9]} 27. Rh5 {[%clk 0:01:38.3]} 27... Rc3 {[%clk 0:00:44.5]} 28.
Qb1 {[%clk 0:01:23.1]} 28... Qb5+ {[%clk 0:00:36.7]} 29. Kd1 {[%clk 0:01:22.8]}
29... Qa4+ {[%clk 0:00:26.7]} 30. Ke2 {[%clk 0:01:21.9]} 30... Rc2 {[%clk
0:00:18.8]} 31. Qh1 {[%clk 0:01:14.9]} 31... Qb5+ {[%clk 0:00:17.1]} 32. Kd1
{[%clk 0:01:13.4]} 32... Qd3 {[%clk 0:00:16.2]} 33. Be1 {[%clk 0:01:10.8]} 33...
R8c6 {[%clk 0:00:11.3]} 34. g4 {[%clk 0:01:02.8]} 34... fxg4 {[%clk 0:00:09.1]}
35. f5 {[%clk 0:01:02.3]} 35... Nxf5 {[%clk 0:00:08.2]} 36. Rxf5 {[%clk
0:00:59.8]} 36... Qxf5 {[%clk 0:00:08]} 37. Qxd5 {[%clk 0:00:59.9]} 37... Bd8
{[%clk 0:00:06.4]} 38. Qg2 {[%clk 0:00:49]} 38... Bg5 {[%clk 0:00:05.9]} 39. d5
{[%clk 0:00:48.7]} 39... R6c3 {[%clk 0:00:05.5]} 40. Ne4 {[%clk 0:00:43.4]}
40... Rxg2 {[%clk 0:00:04.6]} 41. Nxc3 {[%clk 0:00:41.1]} 41... Qd3+ {[%clk
0:00:04.6]} 0-1

[Event "Early-Titled-Tuesday-Blitz-December-26-2023"]
[Site "Chess.com"]
[Date "2023.12.26"]
[Round "6"]
[White "chessdiamant"]
[Black "Aygehovit1992"]
[Result "0-1"]
[WhiteElo "2562"]
[BlackElo "2757"]
[TimeControl "180+1"]
[EndTime "9:06:27 PST"]
[Termination "Aygehovit1992 won by checkmate"]

1. Nf3 {[%clk 0:03:00.9]} 1... Nf6 {[%clk 0:02:52]} 2. g3 {[%clk 0:03:00]} 2...
g6 {[%clk 0:02:52.5]} 3. b3 {[%clk 0:03:00.7]} 3... Bg7 {[%clk 0:02:51.8]} 4.
Bb2 {[%clk 0:03:01.6]} 4... d6 {[%clk 0:02:52.3]} 5. d4 {[%clk 0:03:00.7]} 5...
b5 {[%clk 0:02:50.8]} 6. c4 {[%clk 0:02:57.1]} 6... bxc4 {[%clk 0:02:50.1]} 7.
bxc4 {[%clk 0:02:58]} 7... Bb7 {[%clk 0:02:45.5]} 8. Bg2 {[%clk 0:02:57.7]} 8...
Nbd7 {[%clk 0:02:45.8]} 9. O-O {[%clk 0:02:57.4]} 9... Rb8 {[%clk 0:02:42.7]}
10. Qc1 {[%clk 0:02:52.7]} 10... O-O {[%clk 0:02:37.4]} 11. Nbd2 {[%clk
0:02:50.7]} 11... e6 {[%clk 0:02:37.9]} 12. Nb3 {[%clk 0:02:50.2]} 12... Ne4
{[%clk 0:02:22]} 13. Na5 {[%clk 0:02:39.8]} 13... Ba8 {[%clk 0:02:21.9]} 14. Nd2
{[%clk 0:02:36]} 14... Nxd2 {[%clk 0:02:17]} 15. Qxd2 {[%clk 0:02:36.9]} 15...
Bxg2 {[%clk 0:02:13.8]} 16. Kxg2 {[%clk 0:02:37.8]} 16... c5 {[%clk 0:01:52.1]}
17. Nb3 {[%clk 0:01:58.8]} 17... Qc7 {[%clk 0:01:44]} 18. Rac1 {[%clk
0:01:50.4]} 18... Rfc8 {[%clk 0:01:35.8]} 19. Rfd1 {[%clk 0:01:47]} 19... a5
{[%clk 0:01:31.1]} 20. dxc5 {[%clk 0:01:30.2]} 20... Bxb2 {[%clk 0:01:27.7]} 21.
Qxb2 {[%clk 0:01:31.1]} 21... a4 {[%clk 0:01:22.2]} 22. cxd6 {[%clk 0:01:23.7]}
22... Qb7+ {[%clk 0:01:21.8]} 23. Kg1 {[%clk 0:01:23.7]} 23... axb3 {[%clk
0:01:22.2]} 24. axb3 {[%clk 0:01:24.4]} 24... Qxb3 {[%clk 0:01:22.9]} 25. Qd4
{[%clk 0:01:22]} 25... Qb6 {[%clk 0:01:09.9]} 26. c5 {[%clk 0:01:11.7]} 26...
Rxc5 {[%clk 0:01:05.4]} 27. Rb1 {[%clk 0:01:06.3]} 27... Qxb1 {[%clk 0:01:05]}
28. Rxb1 {[%clk 0:01:07.2]} 28... Rxb1+ {[%clk 0:01:05.3]} 29. Kg2 {[%clk
0:01:07.9]} 29... Rd5 {[%clk 0:00:57.5]} 30. Qe4 {[%clk 0:01:03.9]} 30... Rb6
{[%clk 0:00:49.2]} 31. h4 {[%clk 0:01:01.8]} 31... Rbxd6 {[%clk 0:00:46.7]} 32.
Qa4 {[%clk 0:00:58.9]} 32... h5 {[%clk 0:00:46.4]} 33. Qa8+ {[%clk 0:00:58.8]}
33... Kg7 {[%clk 0:00:46.2]} 34. Qa1+ {[%clk 0:00:59.5]} 34... e5 {[%clk
0:00:46.2]} 35. Qa4 {[%clk 0:00:57.2]} 35... Rd2 {[%clk 0:00:44.5]} 36. Qb4
{[%clk 0:00:49.5]} 36... Nf6 {[%clk 0:00:41.7]} 37. Qb5 {[%clk 0:00:46.3]} 37...
R6d5 {[%clk 0:00:41.1]} 38. Qc4 {[%clk 0:00:44]} 38... e4 {[%clk 0:00:39.3]} 39.
Qa6 {[%clk 0:00:38.1]} 39... Rf5 {[%clk 0:00:37]} 40. Kg1 {[%clk 0:00:21.2]}
40... Ng4 {[%clk 0:00:32.5]} 41. Qa1+ {[%clk 0:00:21.4]} 41... Kh7 {[%clk
0:00:32.1]} 42. Qc1 {[%clk 0:00:19]} 42... Rxe2 {[%clk 0:00:29.2]} 43. Qc4
{[%clk 0:00:18.3]} 43... Rfxf2 {[%clk 0:00:28.3]} 44. Kh1 {[%clk 0:00:12.9]}
44... Rf1# {[%clk 0:00:27.6]} 0-1

[Event "Early-Titled-Tuesday-Blitz-December-26-2023"]
[Site "Chess.com"]
[Date "2023.12.26"]
[Round "6"]
[White "missponyo10"]
[Black "fugadelafuga"]
[Result "1-0"]
[WhiteElo "2251"]
[BlackElo "2415"]
[TimeControl "180+1"]
[EndTime "9:06:29 PST"]
[Termination "missponyo10 won by resignation"]

1. e4 {[%clk 0:03:00.9]} 1... c6 {[%clk 0:02:53.5]} 2. d4 {[%clk 0:02:59.9]}
2... d5 {[%clk 0:02:49.8]} 3. Nd2 {[%clk 0:02:59.9]} 3... dxe4 {[%clk
0:02:40.1]} 4. Nxe4 {[%clk 0:03:00.8]} 4... Nf6 {[%clk 0:02:40.8]} 5. Nxf6+
{[%clk 0:03:00.8]} 5... exf6 {[%clk 0:02:41.7]} 6. c3 {[%clk 0:03:00.8]} 6...
Bd6 {[%clk 0:02:42.1]} 7. Bd3 {[%clk 0:03:01]} 7... O-O {[%clk 0:02:41.6]} 8.
Qc2 {[%clk 0:03:01.9]} 8... Re8+ {[%clk 0:02:42.2]} 9. Ne2 {[%clk 0:03:02.4]}
9... h5 {[%clk 0:02:42.9]} 10. Be3 {[%clk 0:03:01.7]} 10... Nd7 {[%clk
0:02:42.9]} 11. O-O {[%clk 0:03:01.3]} 11... Nf8 {[%clk 0:02:43.1]} 12. Ng3
{[%clk 0:02:57.2]} 12... h4 {[%clk 0:02:43.2]} 13. Ne2 {[%clk 0:02:55.5]} 13...
Bc7 {[%clk 0:02:42.7]} 14. Rfe1 {[%clk 0:02:50]} 14... Bg4 {[%clk 0:02:40.4]}
15. Nf4 {[%clk 0:02:36.3]} 15... Qd6 {[%clk 0:02:31.8]} 16. c4 {[%clk
0:02:31.5]} 16... Ne6 {[%clk 0:02:23.7]} 17. c5 {[%clk 0:02:28.2]} 17... Qd7
{[%clk 0:02:22.4]} 18. Bf5 {[%clk 0:02:22.4]} 18... Bxf4 {[%clk 0:01:58.4]} 19.
Bxg4 {[%clk 0:02:05.9]} 19... Nxd4 {[%clk 0:01:21.2]} 20. Qd1 {[%clk 0:01:58.7]}
20... f5 {[%clk 0:01:07]} 21. Bh3 {[%clk 0:01:45.7]} 21... Be5 {[%clk
0:01:03.7]} 22. Qd2 {[%clk 0:01:32.2]} 22... Rad8 {[%clk 0:01:01.9]} 23. Rad1
{[%clk 0:01:31.9]} 23... Qc7 {[%clk 0:01:01.9]} 24. Bxd4 {[%clk 0:01:30.6]}
24... Rxd4 {[%clk 0:00:51.2]} 25. Qxd4 {[%clk 0:01:29.1]} 25... Bxd4 {[%clk
0:00:48.8]} 26. Rxe8+ {[%clk 0:01:29.9]} 26... Kh7 {[%clk 0:00:49.4]} 27. Rxd4
{[%clk 0:01:30.2]} 27... g6 {[%clk 0:00:47.9]} 28. Rd1 {[%clk 0:01:26.6]} 28...
Qa5 {[%clk 0:00:46]} 29. Re7 {[%clk 0:01:21.8]} 29... Kg7 {[%clk 0:00:45.6]} 30.
Rxb7 {[%clk 0:01:15]} 30... Qxc5 {[%clk 0:00:45.3]} 31. g3 {[%clk 0:01:12.4]}
31... hxg3 {[%clk 0:00:44.2]} 32. hxg3 {[%clk 0:01:13.2]} 32... a5 {[%clk
0:00:43.8]} 33. Rdd7 {[%clk 0:01:11.3]} 33... Qc1+ {[%clk 0:00:39.5]} 34. Kg2
{[%clk 0:01:09.5]} 34... Kh6 {[%clk 0:00:34]} 35. Rxf7 {[%clk 0:01:08.4]} 35...
Qc2 {[%clk 0:00:29.4]} 36. Rfe7 {[%clk 0:00:54.7]} 36... Qc4 {[%clk 0:00:26.2]}
37. Rh7+ {[%clk 0:00:52.2]} 37... Kg5 {[%clk 0:00:26]} 38. Rbf7 {[%clk
0:00:47.2]} 38... Qe4+ {[%clk 0:00:19.8]} 39. Kh2 {[%clk 0:00:46.8]} 39... Qf3
{[%clk 0:00:19.6]} 40. Kg1 {[%clk 0:00:46.6]} 40... Qd1+ {[%clk 0:00:18.7]} 41.
Bf1 {[%clk 0:00:45.9]} 41... Qf3 {[%clk 0:00:16.3]} 42. Bg2 {[%clk 0:00:45.9]}
42... Qd1+ {[%clk 0:00:09.2]} 43. Kh2 {[%clk 0:00:46]} 43... f4 {[%clk
0:00:09.3]} 44. gxf4+ {[%clk 0:00:45.3]} 44... Kg4 {[%clk 0:00:09.8]} 45. f3+
{[%clk 0:00:45.2]} 1-0

[Event "Early-Titled-Tuesday-Blitz-December-26-2023"]
[Site "Chess.com"]
[Date "2023.12.26"]
[Round "6"]
[White "GMT4114"]
[Black "jcmesafischer"]
[Result "0-1"]
[WhiteElo "2016"]
[BlackElo "2337"]
[TimeControl "180+1"]
[EndTime "9:06:31 PST"]
[Termination "jcmesafischer won on time"]

1. e4 {[%clk 0:03:00.9]} 1... c5 {[%clk 0:02:55.9]} 2. Nc3 {[%clk 0:03:00.9]}
2... d6 {[%clk 0:02:53.9]} 3. d4 {[%clk 0:03:00.6]} 3... cxd4 {[%clk 0:02:53.8]}
4. Qxd4 {[%clk 0:03:01.5]} 4... Bd7 {[%clk 0:02:51.5]} 5. b3 {[%clk 0:03:00.6]}
5... Nc6 {[%clk 0:02:51.1]} 6. Qd2 {[%clk 0:03:00.8]} 6... g6 {[%clk 0:02:51.2]}
7. Bb2 {[%clk 0:02:58.4]} 7... Bg7 {[%clk 0:02:51.5]} 8. O-O-O {[%clk
0:02:57.5]} 8... a5 {[%clk 0:02:49.7]} 9. a4 {[%clk 0:02:52]} 9... Nb4 {[%clk
0:02:48.1]} 10. Kb1 {[%clk 0:02:40.7]} 10... Rc8 {[%clk 0:02:24.4]} 11. f4
{[%clk 0:02:19.4]} 11... Nh6 {[%clk 0:02:04.9]} 12. Nf3 {[%clk 0:02:16]} 12...
O-O {[%clk 0:02:01.9]} 13. h4 {[%clk 0:02:15.9]} 13... Qc7 {[%clk 0:01:53.5]}
14. e5 {[%clk 0:01:59.5]} 14... Bf5 {[%clk 0:01:23.7]} 15. Nd4 {[%clk
0:01:59.1]} 15... dxe5 {[%clk 0:01:16.5]} 16. Nxf5 {[%clk 0:01:58.9]} 16... Nxf5
{[%clk 0:01:15.7]} 17. fxe5 {[%clk 0:00:57.3]} 17... Qxe5 {[%clk 0:00:44.1]} 18.
Rh3 {[%clk 0:00:50.3]} 18... Nd6 {[%clk 0:00:20.6]} 19. Re1 {[%clk 0:00:31.7]}
19... Qc5 {[%clk 0:00:14.4]} 20. h5 {[%clk 0:00:29.8]} 20... Nf5 {[%clk
0:00:06.8]} 21. hxg6 {[%clk 0:00:28.1]} 21... hxg6 {[%clk 0:00:07.7]} 22. g4
{[%clk 0:00:23.5]} 22... Rfd8 {[%clk 0:00:07.7]} 23. Qh2 {[%clk 0:00:14.6]}
23... Nd4 {[%clk 0:00:06.8]} 24. Bc4 {[%clk 0:00:10.5]} 24... Nbxc2 {[%clk
0:00:06.3]} 25. Ne4 {[%clk 0:00:07.7]} 25... Qc7 {[%clk 0:00:03.9]} 26. Bxf7+
{[%clk 0:00:05.3]} 26... Kxf7 {[%clk 0:00:03.7]} 27. Ng5+ {[%clk 0:00:05.5]}
27... Ke8 {[%clk 0:00:03]} 28. Rh8+ {[%clk 0:00:02.4]} 28... Bxh8 {[%clk
0:00:03.6]} 29. Qxh8+ {[%clk 0:00:02.7]} 29... Kd7 {[%clk 0:00:04.4]} 0-1

[Event "Early-Titled-Tuesday-Blitz-December-26-2023"]
[Site "Chess.com"]
[Date "2023.12.26"]
[Round "6"]
[White "zubridis"]
[Black "Alex_Sahakyan2006"]
[Result "0-1"]
[WhiteElo "2554"]
[BlackElo "2713"]
[TimeControl "180+1"]
[EndTime "9:06:37 PST"]
[Termination "Alex_Sahakyan2006 won on time"]

1. e4 {[%clk 0:02:58.6]} 1... c5 {[%clk 0:02:59.1]} 2. Nf3 {[%clk 0:02:53]} 2...
g6 {[%clk 0:02:59.1]} 3. c4 {[%clk 0:02:48.9]} 3... Bg7 {[%clk 0:02:57.9]} 4. d4
{[%clk 0:02:49.3]} 4... cxd4 {[%clk 0:02:57.5]} 5. Nxd4 {[%clk 0:02:50.2]} 5...
Nc6 {[%clk 0:02:51.4]} 6. Be3 {[%clk 0:02:50.3]} 6... Nf6 {[%clk 0:02:49.6]} 7.
Nc3 {[%clk 0:02:50.3]} 7... d6 {[%clk 0:02:47.5]} 8. Be2 {[%clk 0:02:48.5]} 8...
O-O {[%clk 0:02:46.6]} 9. O-O {[%clk 0:02:46.1]} 9... Nxd4 {[%clk 0:02:46.9]}
10. Bxd4 {[%clk 0:02:45.9]} 10... Be6 {[%clk 0:02:47.4]} 11. Kh1 {[%clk
0:02:19.4]} 11... a5 {[%clk 0:02:37.5]} 12. f4 {[%clk 0:02:17.7]} 12... a4
{[%clk 0:02:36.4]} 13. f5 {[%clk 0:01:33.2]} 13... Bd7 {[%clk 0:02:35.5]} 14.
Bd3 {[%clk 0:01:09.6]} 14... Bc6 {[%clk 0:02:34.3]} 15. Nd5 {[%clk 0:01:05]}
15... Bxd5 {[%clk 0:02:34.1]} 16. exd5 {[%clk 0:01:04.4]} 16... Nd7 {[%clk
0:02:07.1]} 17. Bxg7 {[%clk 0:00:57.5]} 17... Kxg7 {[%clk 0:02:08]} 18. Rf4
{[%clk 0:00:45.7]} 18... Ne5 {[%clk 0:02:04.6]} 19. Rh4 {[%clk 0:00:30.2]} 19...
f6 {[%clk 0:02:03.1]} 20. fxg6 {[%clk 0:00:27.5]} 20... hxg6 {[%clk 0:02:02.8]}
21. Qd2 {[%clk 0:00:20.5]} 21... Rh8 {[%clk 0:02:03.2]} 22. Re4 {[%clk
0:00:18.3]} 22... Rh5 {[%clk 0:02:01.4]} 23. Rae1 {[%clk 0:00:17.7]} 23... Qb6
{[%clk 0:01:52.7]} 24. h3 {[%clk 0:00:16.5]} 24... Rah8 {[%clk 0:01:52.1]} 25.
R4e3 {[%clk 0:00:16.3]} 25... Rg5 {[%clk 0:01:49]} 26. Rf1 {[%clk 0:00:13.5]}
26... Qd4 {[%clk 0:01:46.3]} 27. Qe2 {[%clk 0:00:10]} 27... Rh4 {[%clk
0:01:40.8]} 28. b3 {[%clk 0:00:09.8]} 28... a3 {[%clk 0:01:40]} 29. Bb1 {[%clk
0:00:07.3]} 29... b6 {[%clk 0:01:37.3]} 30. Qf2 {[%clk 0:00:06.6]} 30... Rh6
{[%clk 0:01:31.8]} 31. Kg1 {[%clk 0:00:05.9]} 31... Kf8 {[%clk 0:01:23.1]} 32.
Re4 {[%clk 0:00:04.2]} 32... Qxf2+ {[%clk 0:01:21.7]} 33. Kxf2 {[%clk
0:00:04.1]} 33... Ke8 {[%clk 0:01:13.8]} 34. Rg1 {[%clk 0:00:02.4]} 34... Kd7
{[%clk 0:01:09.5]} 35. Bc2 {[%clk 0:00:02.8]} 35... Rh8 {[%clk 0:01:05.9]} 36.
Rge1 {[%clk 0:00:03]} 36... Rgh5 {[%clk 0:00:54.5]} 37. b4 {[%clk 0:00:02.5]}
37... Rc8 {[%clk 0:00:53.2]} 38. Bb3 {[%clk 0:00:02.7]} 38... Nd3+ {[%clk
0:00:51.3]} 39. Kg3 {[%clk 0:00:03.2]} 39... Nxe1 {[%clk 0:00:51.3]} 40. Rxe1
{[%clk 0:00:04.1]} 40... Re5 {[%clk 0:00:50.6]} 41. Rf1 {[%clk 0:00:04.1]} 41...
b5 {[%clk 0:00:41.7]} 42. cxb5 {[%clk 0:00:03.7]} 42... Re4 {[%clk 0:00:40.3]}
0-1